[Event "8th Menchik Memorial 2024"]
[Site "London"]
[Date "2024.03.22"]
[Round "1.1"]
[White "Sivanandan, Bodhana"]
[Black "Arakhamia-Grant, Ketevan"]
[Result "1/2-1/2"]
[ECO "B80"]
[WhiteElo "2088"]
[BlackElo "2290"]
[Annotator "RC"]
[PlyCount "104"]
[EventDate "2024.03.22"]
[EventType "tourn"]
[EventCountry "ENG"]
[SourceTitle "playchess.com"]
[Source "ChessBase"]
[SourceQuality "1"]
[TimeControl "5400+30"]

1. e4 {[%emt 0:00:06]} c5 {[%emt 0:00:19]} 2. Nf3 {[%emt 0:00:37]} e6 {[%emt 0:00:29]} 3. g3 {[%emt 0:01:19]} Nc6 {[%emt 0:00:39]} 4. Bg2 {[%emt 0:00:47]} Nf6 {[%emt 0:06:38]} 5. Nc3 {[%emt 0:02:53]} Be7 {[%emt 0:12:42]} 6. O-O {[%emt 0:03:27]} d6 {[%emt 0:00:13]} 7. Re1 {[%emt 0:01:51]} O-O {[%emt 0:00:13]} 8. d4 {[%emt 0:03:30]} cxd4 {[%emt 0:02:15]} 9. Nxd4 {[%emt 0:00:38]} Qc7 {[%emt 0:10:24]} 10. Be3 {[%emt 0:05:11]} a6 {[%emt 0:03:41]} 11. h3 {[%emt 0:06:41]} Bd7 {[%emt 0:09:46]} 12. Qd2 {[%emt 0:04:26]} Rac8 {[%emt 0:05:11]} 13. Nxc6 {[%emt 0:04:39]} Bxc6 {[%emt 0:00:16]} 14. Rad1 {[%emt 0:02:25]} b5 {[%emt 0:00:57]} 15. a3 {[%emt 0:07:22]} a5 {[%emt 0:03:57]} 16. Bg5 {[%emt 0:07:35]} Rfd8 {[%emt 0:04:08]} 17. Qe3 {[%emt 0:07:57]} Re8 {[%emt 0:23:49]} 18. Qd3 {[%emt 0:05:05]} b4 {[%emt 0:02:05]} 19. axb4 {[%emt 0:02:49]} axb4 {[%emt 0:00:05]} 20. Ne2 {[%emt 0:02:35]} Red8 {[%emt 0:07:32]} 21. Nd4 {[%emt 0:04:28]} Ba8 {[%emt 0:00:14]} 22. Rd2 {[%emt 0:02:53]} h6 {[%emt 0:01:39]} 23. Nb5 {[%emt 0:02:23]} Qa5 {[%emt 0:00:50]} 24. Bxf6 {[%emt 0:02:40]} Bxf6 {[%emt 0:00:18]} 25. Nd4 {[%emt 0:01:41]} Qc5 {[%emt 0:01:23]} 26. Red1 {[%emt 0:01:06]} d5 {[%emt 0:00:39]} 27. Nb3 {[%emt 0:01:12]} Qb6 {[%emt 0:00:31]} 28. Qe2 {[%emt 0:03:21]} dxe4 {[%emt 0:01:16]} 29. Rxd8+ {[%emt 0:01:45]} Rxd8 {[%emt 0:00:07]} 30. Rxd8+ {[%emt 0:00:23]} Qxd8 {[%emt 0:00:06]} 31. Bxe4 {[%emt 0:00:46]} Bxb2 {[%emt 0:00:37]} 32. Bxa8 {[%emt 0:00:40]} Qxa8 {[%emt 0:00:03]} 33. Qc4 {[%emt 0:00:43]} Bc3 {[%emt 0:00:24]} 34. Qd3 {[%emt 0:01:51]} g6 {[%emt 0:00:43]} 35. Nc5 {[%emt 0:00:48]} Qd5 {[%emt 0:01:18]} 36. Qxd5 {[%emt 0:01:15]} exd5 {[%emt 0:00:04]} 37. Kf1 {[%emt 0:00:17]} Kf8 {[%emt 0:00:59]} 38. Ke2 {[%emt 0:00:27]} Ke7 {[%emt 0:00:11]} 39. Kd3 {[%emt 0:00:17]} Be1 {[%emt 0:00:22]} 40. Ke2 {[%emt 0:00:08]} Bc3 {[%emt 0:00:03]} 41. Kd3 {[%emt 0:00:11]} Kd6 {[%emt 0:00:32]} 42. Nb7+ {[%emt 0:02:31]} Kc7 {[%emt 0:00:12]} 43. Nc5 {[%emt 0:00:47]} Kc6 {[%emt 0:00:12]} 44. Nb3 {[%emt 0:00:25]} h5 {[%emt 0:00:30]} 45. f3 {[%emt 0:00:19]} Kd6 {[%emt 0:00:56]} 46. Nc1 {[%emt 0:00:27]} f5 {[%emt 0:02:46]} 47. Ne2 {[%emt 0:01:45]} Be5 {[%emt 0:00:21]} 48. g4 {[%emt 0:01:29]} fxg4 {[%emt 0:00:22]} 49. fxg4 {[%emt 0:00:26]} Ke6 {[%emt 0:01:01]} 50. Nd4+ {[%emt 0:01:30]} Kf6 {[%emt 0:00:30]} 51. Nf3 {[%emt 0:00:49]} Bc3 {[%emt 0:00:11]} 52. Ke3 {[%emt 0:00:17]} hxg4 {[%emt 0:00:38]} 1/2-1/2

[Event "8th Menchik Memorial 2024"]
[Site "London"]
[Date "2024.03.22"]
[Round "1.2"]
[White "Subramanian, Anusha"]
[Black "Smith, Olivia"]
[Result "1-0"]
[ECO "C42"]
[WhiteElo "1997"]
[BlackElo "2054"]
[Annotator "RC"]
[PlyCount "125"]
[EventDate "2024.03.22"]
[EventType "tourn"]
[EventCountry "ENG"]
[SourceTitle "playchess.com"]
[Source "ChessBase"]
[SourceQuality "1"]
[TimeControl "5400+30"]

1. e4 {[%emt 0:00:03]} e5 {[%emt 0:02:10]} 2. Nf3 {[%emt 0:00:07]} Nf6 {[%emt 0:00:31]} 3. Nxe5 {[%emt 0:00:14]} d6 {[%emt 0:00:37]} 4. Nf3 {[%emt 0:00:07]} Nxe4 {[%emt 0:00:15]} 5. Nc3 {[%emt 0:00:08]} Nxc3 {[%emt 0:01:53]} 6. dxc3 {[%emt 0:00:03]} Be7 {[%emt 0:00:50]} 7. Be3 {[%emt 0:00:15]} Nc6 {[%emt 0:05:15]} 8. Qd2 {[%emt 0:00:21]} Be6 {[%emt 0:01:04]} 9. Bd3 {[%emt 0:06:39]} Qd7 {[%emt 0:01:29]} 10. a3 {[%emt 0:02:17]} a6 {[%emt 0:02:09]} 11. h3 {[%emt 0:02:08]} Ne5 {[%emt 0:04:47]} 12. Nd4 {[%emt 0:04:45]} Nc4 {[%emt 0:05:44]} 13. Bxc4 {[%emt 0:03:01]} Bxc4 {[%emt 0:00:09]} 14. g4 {[%emt 0:02:03]} O-O-O {[%emt 0:07:32]} 15. Nf5 {[%emt 0:04:08]} Bf6 {[%emt 0:01:08]} 16. O-O-O {[%emt 0:01:17]} Be6 {[%emt 0:06:35]} 17. Nd4 {[%emt 0:04:13]} Qa4 {[%emt 0:07:00]} 18. f4 {[%emt 0:12:25]} h6 {[%emt 0:05:46]} 19. Qd3 {[%emt 0:08:51]} Kb8 {[%emt 0:04:09]} 20. Nxe6 {[%emt 0:05:12]} fxe6 {[%emt 0:00:06]} 21. Qg6 {[%emt 0:02:40]} Qc4 {[%emt 0:05:34]} 22. Kb1 {[%emt 0:40:33]} c5 {[%emt 0:03:44]} 23. Rd2 {[%emt 0:00:00]} Qb5 {[%emt 0:09:36]} 24. Kc1 {[%emt 0:00:00]} Rhe8 {[%emt 0:01:22]} 25. h4 {[%emt 0:00:00]} Qc6 {[%emt 0:03:07]} 26. Rhd1 {[%emt 0:00:00]} d5 {[%emt 0:05:48]} 27. g5 {[%emt 0:00:00]} hxg5 {[%emt 0:02:43]} 28. hxg5 {[%emt 0:00:00]} Be7 {[%emt 0:00:41]} 29. Qxg7 {[%emt 0:00:00]} Bf8 {[%emt 0:06:27]} 30. Qh7 {[%emt 0:00:00]} Rd7 {[%emt 0:01:08]} 31. Qh5 {[%emt 0:00:00]} Rc8 {[%emt 0:00:11]} 32. Qf3 {[%emt 0:00:00]} Bg7 {[%emt 0:03:12]} 33. f5 {[%emt 0:00:00]} exf5 {[%emt 0:01:57]} 34. Rxd5 {[%emt 0:00:00]} Rxd5 {[%emt 0:00:55]} 35. Qxd5 {[%emt 0:00:00]} Qg6 {[%emt 0:01:52]} 36. Rf1 {[%emt 0:00:00]} Qe8 {[%emt 0:00:32]} 37. Bxc5 {[%emt 0:00:00]} Qe2 {[%emt 0:00:16]} 38. Bd6+ {[%emt 0:00:00]} Ka8 {[%emt 0:00:17]} 39. Qxf5 {[%emt 0:00:00]} Rd8 {[%emt 0:00:47]} 40. Bc5 {[%emt 0:00:54]} Be5 {[%emt 0:00:39]} 41. Bd4 {[%emt 0:01:20]} Bxd4 {[%emt 0:00:28]} 42. cxd4 {[%emt 0:00:02]} Qe3+ {[%emt 0:00:11]} 43. Kb1 {[%emt 0:00:06]} Qxd4 {[%emt 0:00:27]} 44. g6 {[%emt 0:00:05]} Rd7 {[%emt 0:00:53]} 45. c3 {[%emt 0:02:56]} Qd6 {[%emt 0:00:32]} 46. Qf8+ {[%emt 0:00:56]} Qxf8 {[%emt 0:00:21]} 47. Rxf8+ {[%emt 0:00:03]} Ka7 {[%emt 0:00:06]} 48. Rf1 {[%emt 0:00:53]} Rg7 {[%emt 0:00:22]} 49. Rg1 {[%emt 0:00:05]} Kb6 {[%emt 0:00:14]} 50. Rg5 {[%emt 0:00:05]} Kc6 {[%emt 0:01:17]} 51. Kc2 {[%emt 0:00:38]} Kd6 {[%emt 0:00:27]} 52. c4 {[%emt 0:00:08]} Ke6 {[%emt 0:00:43]} 53. Kc3 {[%emt 0:00:10]} Kf6 {[%emt 0:00:26]} 54. Rg3 {[%emt 0:00:07]} Ke6 {[%emt 0:00:24]} 55. b4 {[%emt 0:00:42]} Kd6 {[%emt 0:00:38]} 56. c5+ {[%emt 0:00:11]} Kc6 {[%emt 0:00:32]} 57. Kd4 {[%emt 0:00:26]} Kb5 {[%emt 0:00:28]} 58. Ke5 {[%emt 0:00:16]} a5 {[%emt 0:00:26]} 59. bxa5 {[%emt 0:00:17]} Kxa5 {[%emt 0:00:37]} 60. Kf6 {[%emt 0:00:07]} Rc7 {[%emt 0:00:10]} 61. g7 {[%emt 0:00:08]} Rc6+ {[%emt 0:00:12]} 62. Ke7 {[%emt 0:00:07]} Rc7+ {[%emt 0:00:35]} 63. Kd8 {[%emt 0:00:07]} 1-0

[Event "8th Menchik Memorial 2024"]
[Site "London"]
[Date "2024.03.22"]
[Round "1.3"]
[White "Hunt, Harriet V"]
[Black "Hryshchenko, Kamila"]
[Result "1-0"]
[ECO "B06"]
[WhiteElo "2307"]
[BlackElo "2186"]
[Annotator "RC"]
[PlyCount "151"]
[EventDate "2024.03.22"]
[EventType "tourn"]
[EventCountry "ENG"]
[SourceTitle "playchess.com"]
[Source "ChessBase"]
[SourceQuality "1"]
[TimeControl "5400+30"]

1. e4 {[%emt 0:00:02]} d6 {[%emt 0:00:07]} 2. d4 {[%emt 0:00:10]} g6 {[%emt 0:00:06]} 3. Nc3 {[%emt 0:00:08]} Bg7 {[%emt 0:00:07]} 4. Be3 {[%emt 0:00:10]} c6 {[%emt 0:00:20]} 5. a4 {[%emt 0:00:09]} Nd7 {[%emt 0:00:47]} 6. Nf3 {[%emt 0:00:41]} Ngf6 {[%emt 0:00:31]} 7. h3 {[%emt 0:00:29]} a5 {[%emt 0:00:33]} 8. e5 {[%emt 0:18:54]} Nd5 {[%emt 0:05:12]} 9. Nxd5 {[%emt 0:01:01]} cxd5 {[%emt 0:00:08]} 10. exd6 {[%emt 0:01:58]} exd6 {[%emt 0:01:16]} 11. Bb5 {[%emt 0:03:52]} O-O {[%emt 0:00:47]} 12. O-O {[%emt 0:00:13]} Nf6 {[%emt 0:04:13]} 13. c3 {[%emt 0:02:24]} Bd7 {[%emt 0:01:18]} 14. Qb3 {[%emt 0:02:52]} Bc6 {[%emt 0:04:26]} 15. Rfe1 {[%emt 0:04:58]} Ne4 {[%emt 0:05:12]} 16. Nh2 {[%emt 0:03:30]} Re8 {[%emt 0:05:09]} 17. Re2 {[%emt 0:06:09]} Re6 {[%emt 0:03:07]} 18. Rae1 {[%emt 0:01:08]} Qc7 {[%emt 0:08:32]} 19. Bf4 {[%emt 0:02:31]} Rae8 {[%emt 0:06:11]} 20. Ng4 {[%emt 0:03:49]} Nf6 {[%emt 0:13:34]} 21. Ne3 {[%emt 0:02:54]} h6 {[%emt 0:00:36]} 22. Bg3 {[%emt 0:01:08]} Qb6 {[%emt 0:06:56]} 23. Bh4 {[%emt 0:08:34]} g5 {[%emt 0:10:11]} 24. Bg3 {[%emt 0:00:12]} Bf8 {[%emt 0:01:05]} 25. Bc4 {[%emt 0:03:29]} Qxb3 {[%emt 0:00:27]} 26. Bxb3 {[%emt 0:00:01]} Nd7 {[%emt 0:00:52]} 27. Bc2 {[%emt 0:01:50]} Nb6 {[%emt 0:02:16]} 28. b3 {[%emt 0:00:23]} Bd7 {[%emt 0:04:24]} 29. Bd3 {[%emt 0:04:42]} Rc8 {[%emt 0:00:44]} 30. Rc1 {[%emt 0:00:29]} f5 {[%emt 0:08:36]} 31. f4 {[%emt 0:06:11]} Bg7 {[%emt 0:00:07]} 32. Rcc2 {[%emt 0:04:40]} Rf8 {[%emt 0:00:06]} 33. Nd1 {[%emt 0:01:52]} Rg6 {[%emt 0:01:18]} 34. Nf2 {[%emt 0:04:32]} Bf6 {[%emt 0:03:24]} 35. Re3 {[%emt 0:03:42]} Rf7 {[%emt 0:03:03]} 36. fxg5 {[%emt 0:02:41]} Bxg5 {[%emt 0:01:07]} 37. Rf3 {[%emt 0:00:05]} Re6 {[%emt 0:01:31]} 38. Re2 {[%emt 0:02:03]} Rxe2 {[%emt 0:00:35]} 39. Bxe2 {[%emt 0:00:04]} Nc8 {[%emt 0:00:27]} 40. Nd3 {[%emt 0:01:01]} Re7 {[%emt 0:00:34]} 41. Kf1 {[%emt 0:02:12]} Be6 {[%emt 0:00:28]} 42. Nf4 {[%emt 0:00:36]} Bf7 {[%emt 0:00:05]} 43. Bd3 {[%emt 0:00:08]} Re4 {[%emt 0:00:52]} 44. Bxe4 {[%emt 0:00:49]} dxe4 {[%emt 0:00:05]} 45. Rf2 {[%emt 0:00:21]} Bxb3 {[%emt 0:00:19]} 46. Rb2 {[%emt 0:00:09]} Bc4+ {[%emt 0:00:04]} 47. Kf2 {[%emt 0:00:05]} b6 {[%emt 0:00:04]} 48. h4 {[%emt 0:00:29]} Be7 {[%emt 0:00:27]} 49. Ke3 {[%emt 0:01:03]} Kf7 {[%emt 0:00:21]} 50. Ne2 {[%emt 0:00:31]} Ke6 {[%emt 0:01:13]} 51. h5 {[%emt 0:01:07]} Bf8 {[%emt 0:00:32]} 52. Bf4 {[%emt 0:00:12]} Ne7 {[%emt 0:00:05]} 53. Kf2 {[%emt 0:01:09]} Nc8 {[%emt 0:01:44]} 54. Be3 {[%emt 0:00:41]} Kd5 {[%emt 0:00:38]} 55. Ng3 {[%emt 0:00:33]} Ke6 {[%emt 0:00:12]} 56. Nf1 {[%emt 0:00:23]} d5 {[%emt 0:00:27]} 57. Nd2 {[%emt 0:01:00]} Ba6 {[%emt 0:00:05]} 58. Bf4 {[%emt 0:00:10]} Kd7 {[%emt 0:00:39]} 59. Nf1 {[%emt 0:00:11]} Bb7 {[%emt 0:00:37]} 60. Ne3 {[%emt 0:00:17]} Ke6 {[%emt 0:00:42]} 61. Bc7 {[%emt 0:00:26]} Bc6 {[%emt 0:00:05]} 62. g3 {[%emt 0:01:05]} Bxa4 {[%emt 0:00:57]} 63. Bxb6 {[%emt 0:00:13]} Be8 {[%emt 0:00:22]} 64. Bxa5 {[%emt 0:00:19]} Nd6 {[%emt 0:00:09]} 65. Rb8 {[%emt 0:00:38]} Be7 {[%emt 0:00:06]} 66. Bd8 {[%emt 0:00:58]} Bxd8 {[%emt 0:00:23]} 67. Rxd8 {[%emt 0:00:05]} Bxh5 {[%emt 0:00:05]} 68. Ng2 {[%emt 0:00:15]} Bf7 {[%emt 0:00:36]} 69. Rh8 {[%emt 0:00:25]} Nb5 {[%emt 0:00:13]} 70. Rxh6+ {[%emt 0:00:25]} Kd7 {[%emt 0:00:05]} 71. Rf6 {[%emt 0:00:40]} Ke7 {[%emt 0:00:05]} 72. Rxf5 {[%emt 0:00:08]} Nxc3 {[%emt 0:00:04]} 73. Nf4 {[%emt 0:00:18]} Bg8 {[%emt 0:01:17]} 74. g4 {[%emt 0:00:25]} Kd6 {[%emt 0:00:04]} 75. g5 {[%emt 0:00:33]} Nb5 {[%emt 0:00:07]} 76. Ke3 {[%emt 0:00:23]} 1-0

[Event "8th Menchik Memorial 2024"]
[Site "London"]
[Date "2024.03.22"]
[Round "1.4"]
[White "Cosman, Andreea-Marioara"]
[Black "Steil-Antoni, Fiona"]
[Result "1/2-1/2"]
[ECO "D34"]
[WhiteElo "2115"]
[BlackElo "2154"]
[Annotator "RC"]
[PlyCount "34"]
[EventDate "2024.03.22"]
[EventType "tourn"]
[EventCountry "ENG"]
[SourceTitle "playchess.com"]
[Source "ChessBase"]
[SourceQuality "1"]
[TimeControl "5400+30"]

1. c4 {[%emt 0:00:03]} e6 {[%emt 0:00:10]} 2. Nc3 {[%emt 0:00:07]} d5 {[%emt 0:01:24]} 3. d4 {[%emt 0:01:00]} c5 {[%emt 0:01:01]} 4. cxd5 {[%emt 0:00:24]} exd5 {[%emt 0:00:31]} 5. Nf3 {[%emt 0:00:09]} Nc6 {[%emt 0:00:25]} 6. g3 {[%emt 0:03:47]} c4 {[%emt 0:00:18]} 7. Bg2 {[%emt 0:00:19]} Nf6 {[%emt 0:00:37]} 8. O-O {[%emt 0:03:04]} Be7 {[%emt 0:00:51]} 9. Bf4 {[%emt 0:01:18]} O-O {[%emt 0:01:51]} 10. Ne5 {[%emt 0:00:07]} Bf5 {[%emt 0:15:58]} 11. Bg5 {[%emt 0:10:58]} Qa5 {[%emt 0:23:17]} 12. Bxf6 {[%emt 0:08:28]} gxf6 {[%emt 0:08:02]} 13. Nf3 {[%emt 0:13:14]} Rfd8 {[%emt 0:05:11]} 14. Qd2 {[%emt 0:05:12]} Be4 {[%emt 0:08:05]} 15. Nh4 {[%emt 0:10:14]} Bxg2 {[%emt 0:07:07]} 16. Kxg2 {[%emt 0:00:06]} Bf8 {[%emt 0:01:48]} 17. Qf4 {[%emt 0:09:03]} Qb6 {[%emt 0:02:55]} 1/2-1/2

[Event "8th Menchik Memorial 2024"]
[Site "London"]
[Date "2024.03.22"]
[Round "1.5"]
[White "Garcia Martin, Marta"]
[Black "Navrotescu, Andreea"]
[Result "1-0"]
[ECO "B13"]
[WhiteElo "2356"]
[BlackElo "2200"]
[Annotator "RC"]
[PlyCount "81"]
[EventDate "2024.03.22"]
[EventType "tourn"]
[EventCountry "ENG"]
[SourceTitle "playchess.com"]
[Source "ChessBase"]
[SourceQuality "1"]
[TimeControl "5400+30"]

1. e4 {[%emt 0:00:04]} c6 {[%emt 0:00:07]} 2. d4 {[%emt 0:05:42]} d5 {[%emt 0:00:09]} 3. exd5 {[%emt 0:00:20]} cxd5 {[%emt 0:00:06]} 4. Bd3 {[%emt 0:00:07]} Nc6 {[%emt 0:00:05]} 5. c3 {[%emt 0:00:08]} Nf6 {[%emt 0:00:16]} 6. Bf4 {[%emt 0:02:45]} Bg4 {[%emt 0:00:27]} 7. Qb3 {[%emt 0:04:59]} Qd7 {[%emt 0:00:17]} 8. Nd2 {[%emt 0:00:27]} e6 {[%emt 0:00:29]} 9. Ngf3 {[%emt 0:00:07]} Bd6 {[%emt 0:01:03]} 10. Bxd6 {[%emt 0:00:10]} Qxd6 {[%emt 0:00:03]} 11. O-O {[%emt 0:00:11]} O-O {[%emt 0:00:24]} 12. Rfe1 {[%emt 0:00:29]} Rab8 {[%emt 0:05:27]} 13. Ne5 {[%emt 0:02:31]} b5 {[%emt 0:04:56]} 14. Nxc6 {[%emt 0:29:30]} Qxc6 {[%emt 0:00:04]} 15. Qb4 {[%emt 0:01:08]} Rfc8 {[%emt 0:08:12]} 16. Reb1 {[%emt 0:10:21]} Qa8 {[%emt 0:17:21]} 17. Nb3 {[%emt 0:02:47]} Rc4 {[%emt 0:04:53]} 18. Qd6 {[%emt 0:02:07]} Rc6 {[%emt 0:09:36]} 19. Qb4 {[%emt 0:03:01]} Rc4 {[%emt 0:00:38]} 20. Qa5 {[%emt 0:05:51]} Bf5 {[%emt 0:12:09]} 21. Bxf5 {[%emt 0:01:46]} exf5 {[%emt 0:00:04]} 22. Nc5 {[%emt 0:06:25]} b4 {[%emt 0:21:40]} 23. Na6 {[%emt 0:01:00]} Rb6 {[%emt 0:00:14]} 24. Nxb4 {[%emt 0:00:30]} h5 {[%emt 0:04:33]} 25. Re1 {[%emt 0:00:31]} Qb8 {[%emt 0:04:09]} 26. Nxd5 {[%emt 0:05:34]} Ng4 {[%emt 0:00:02]} 27. Nxb6 {[%emt 0:01:45]} Qxh2+ {[%emt 0:01:45]} 28. Kf1 {[%emt 0:00:03]} Qf4 {[%emt 0:02:21]} 29. Re2 {[%emt 0:03:00]} axb6 {[%emt 0:00:10]} 30. Qa8+ {[%emt 0:02:28]} Kh7 {[%emt 0:00:03]} 31. g3 {[%emt 0:00:18]} Qd6 {[%emt 0:02:14]} 32. Kg2 {[%emt 0:00:41]} Rc6 {[%emt 0:01:17]} 33. Qe8 {[%emt 0:01:58]} Qd5+ {[%emt 0:00:26]} 34. f3 {[%emt 0:00:09]} Rg6 {[%emt 0:00:59]} 35. Rh1 {[%emt 0:00:27]} f4 {[%emt 0:00:43]} 36. Qe4 {[%emt 0:01:23]} Qxe4 {[%emt 0:00:20]} 37. Rxe4 {[%emt 0:00:40]} f5 {[%emt 0:00:46]} 38. Rxh5+ {[%emt 0:01:39]} Kg8 {[%emt 0:00:18]} 39. Rxf5 {[%emt 0:01:01]} Ne3+ {[%emt 0:00:32]} 40. Rxe3 {[%emt 0:00:04]} fxe3 {[%emt 0:00:06]} 41. Re5 {[%emt 0:00:02]} 1-0

[Event "8th Menchik Memorial 2024"]
[Site "London"]
[Date "2024.03.22"]
[Round "2.1"]
[White "Arakhamia-Grant, Ketevan"]
[Black "Navrotescu, Andreea"]
[Result "1-0"]
[ECO "B12"]
[WhiteElo "2290"]
[BlackElo "2200"]
[Annotator "TA"]
[PlyCount "51"]
[EventDate "2024.03.22"]
[EventType "tourn"]
[EventCountry "ENG"]
[SourceTitle "playchess.com"]
[Source "ChessBase"]
[SourceQuality "1"]
[TimeControl "5400+30"]

{[%evp 9,51,4,7,11,17,-21,-27,-20,27,13,37,33,24,11,35,36,0,1,0,0,193,98,99,111,284,283,291,294,367,302,450,454,449,452,445,445,479,452,643,637,779,768,29986,29987]} 1. e4 {[%emt 0:01:53]} c6 {[%emt 0:00:07]} 2. d4 {[%emt 0:00:25]} d5 {[%emt 0:00:08]} 3. e5 {[%emt 0:00:24]} Bf5 {[%emt 0:00:08]} 4. h4 {[%emt 0:00:24]} h5 {[%emt 0:00:15]} 5. Bd3 {[%emt 0:00:20]} Bxd3 {[%emt 0:00:18]} 6. Qxd3 {[%emt 0:00:06][%cal Oe5e6]} Qa5+ {[%emt 0:00:07]} 7. b4 {[%emt 0:00:26]} Qxb4+ {[%emt 0:08:18]} 8. Nd2 {[%emt 0:00:16] Strongly threatening Rb1. Black has an edge.} Qb5 {[%emt 0:07:18]} (8... e6 $142) 9. c4 $11 {[%emt 0:04:00]} dxc4 {[%emt 0:02:26]} 10. Nxc4 {[%emt 0:00:11][%cal Oe5e6] e6! is the strong threat.} e6 {[%emt 0:01:25]} 11. Ne2 {[%emt 0:08:36][%mdl 1024] Nc3 would now be deadly. White has compensation.} Na6 {[%emt 0:18:58]} 12. Nc3 {[%emt 0:38:48]} Nb4 $1 {[%emt 0:00:26]} 13. Qe2 {[%emt 0:00:17]} Qa6 {[%emt 0:04:33][%cal Ob4c2]} 14. Ne4 $36 {[%emt 0:01:28][%mdl 2048] Hoping for Rh3. White has good play.} Nh6 $2 {[%emt 0:10:04]} (14... O-O-O $1 $11 {and Black is okay.}) 15. Ned6+ {[%emt 0:18:11]} (15. Bxh6 $1 $18 Rxh6 16. Rb1) 15... Bxd6 $16 {[%emt 0:02:05]} 16. Nxd6+ {[%emt 0:00:08]} Ke7 $2 {[%emt 0:03:56] [#] A mistake that costs the game.} (16... Kf8 $16) 17. Bxh6 $1 $18 {[%emt 0:06:23]} (17. Qxh5 $2 Nc2+ (17... Nxa2 $2 18. Bxh6 Qa5+ 19. Kf1 $18) 18. Kd1 Nxa1 $19 (18... Qd3+ $2 19. Bd2 $19)) 17... Rxh6 {[%emt 0:16:32] [#]} 18. Rb1 $1 {[%emt 0:00:31][%cal Ba1b1,Bb1b7,Bb7a7,Ba7a8][%mdl 32]} (18. Qxa6 Nxa6 19. Nxb7 Rg6 $11) 18... Qxe2+ {[%emt 0:12:43]} 19. Kxe2 {[%emt 0:00:06]} Nd5 {[%emt 0:04:06]} (19... a5 $142 20. a3 (20. Nxb7 Rhh8 $14) 20... Nc2 21. Rxb7+ (21. Nxb7 Rhh8 $11) 21... Kf8) 20. Rxb7+ {[%emt 0:00:11]} ({Worse is} 20. Nxb7 Nc3+ 21. Ke3 Nxb1 22. Rxb1 Rhh8 $17) 20... Kf8 {[%emt 0:00:03]} 21. Nxf7 {[%emt 0:05:27]} ({Weaker is} 21. Rxf7+ Kg8 22. Rc1 Rg6 $18) 21... Rg6 {[%emt 0:00:02]} 22. Ng5 {[%emt 0:00:28]} Rd8 {[%emt 0:00:50]} 23. Rxa7 {[%emt 0:04:29]} Rb8 {[%emt 0:04:57]} (23... Nc3+ $142 24. Ke3 Nb5) 24. Rc1 {[%emt 0:01:01]} Rb2+ {[%emt 0:00:58]} 25. Kf3 {[%emt 0:01:55]} Ne7 {[%emt 0:00:29]} 26. Ra8+ {[%emt 0:00:12] Weighted Error Value: White=0.10 (very precise) /Black=0.65.  Loses game:     	---       	Black=2      Mistake:       	White=1     	Black=3      Inaccurate:     	White=1     	---        OK:         	White=9     	Black=8      Best:        	White=1     	Black=1      Strong:       	White=2     	Black=1} 1-0

[Event "8th Menchik Memorial 2024"]
[Site "London"]
[Date "2024.03.22"]
[Round "2.2"]
[White "Steil-Antoni, Fiona"]
[Black "Garcia Martin, Marta"]
[Result "0-1"]
[ECO "B07"]
[WhiteElo "2154"]
[BlackElo "2356"]
[Annotator "TA"]
[PlyCount "50"]
[EventDate "2024.03.22"]
[EventType "tourn"]
[EventCountry "ENG"]
[SourceTitle "playchess.com"]
[Source "ChessBase"]
[SourceQuality "1"]
[TimeControl "5400+30"]

{[%evp 14,50,42,11,12,17,11,12,21,-4,-9,-10,-3,-8,-27,-114,-102,-103,-110,-101,-99,-184,-176,-235,-202,-217,-214,-293,-178,-181,-161,-167,-167,-579,-547,-667,-644,-883,-885]} 1. e4 {[%emt 0:00:03]} d6 {[%emt 0:01:26]} 2. d4 {[%emt 0:00:12]} Nf6 {[%emt 0:00:14]} 3. Nc3 {[%emt 0:01:38]} g6 {[%emt 0:00:37]} 4. Bg5 {[%emt 0:02:06]} Bg7 {[%emt 0:00:44]} 5. e5 {[%emt 0:03:15]} dxe5 {[%emt 0:21:03]} 6. dxe5 {[%emt 0:00:15]} Qxd1+ {[%emt 0:04:33]} 7. Rxd1 {[%emt 0:00:24]} Nfd7 {[%emt 0:00:13]} 8. f4 {[%emt 0:08:35]} Nb6 {[%emt 0:05:49]} 9. Nf3 {[%emt 0:09:24]} f6 {[%emt 0:03:06]} 10. Bh4 {[%emt 0:02:55]} O-O {[%emt 0:01:29] Die Stellung ist ausgeglichen.} 11. a4 {[%emt 0:03:52] [#] a5 ist eine echte Drohung.} Nc6 {[%emt 0:15:10][%cal Rf6e5]} 12. Bb5 {[%emt 0:10:39]} Bg4 {[%emt 0:04:48]} 13. exf6 {[%emt 0:11:06]} Bxf6 {[%emt 0:02:39]} 14. Bf2 {[%emt 0:08:21]} (14. Bxf6 $11 {bleibt in der Remisbreite.} Bxf3 15. Bxe7 Nxe7 (15... Bxd1 16. Bxf8 Bxc2 17. Bh6 $11) 16. gxf3) 14... Bxc3+ {[%emt 0:10:51]} 15. bxc3 {[%emt 0:00:03]} Bxf3 {[%emt 0:00:54]} 16. gxf3 {[%emt 0:00:10]} Rxf4 {[%emt 0:00:05]} 17. Be3 {[%emt 0:07:36]} (17. Bg3 $17 Rxf3 18. Bxc6 bxc6 19. Rd3 Rxd3 20. cxd3) 17... Rxf3 $19 {[%emt 0:00:55]} 18. Ke2 {[%emt 0:00:02]} (18. Bxb6 {ist wohl besser.} cxb6 (18... axb6 19. Rd7 $17) 19. Rd7) 18... Rf6 {[%emt 0:07:21]} 19. h4 {[%emt 0:01:05]} a6 {[%emt 0:00:32]} 20. Bd3 {[%emt 0:00:48]} Ne5 {[%emt 0:02:13]} 21. Be4 {[%emt 0:00:42]} Re6 {[%emt 0:07:29] Droht stark ...Nec4.} 22. Bxb7 {[%emt 0:05:44]} Rb8 {[%emt 0:00:54]} 23. Bxa6 {[%emt 0:02:12] [#]} (23. Bxb6 Nc4+ (23... cxb6 $2 {zu gefräßig.} 24. Bd5 $18) (23... Rxb6 24. Be4 $17) (23... Rxb7 $2 24. Rd8+ Kg7 25. Bd4 $17) 24. Kf3 Rxb7 (24... Nxb6 25. Bxa6 Rf8+ 26. Kg3 $17) 25. Bc5) 23... Nxa4 {[%emt 0:01:30] Ein dynamisches Springerpaar. Schwarz steht klar auf Gewinn.} 24. Ra1 {[%emt 0:05:19]} Rxa6 {[%emt 0:00:21]} 25. Ra3 {[%emt 0:01:15]} Nc4 {[%emt 0:00:10] Weiß schien mit der Eröffnung nicht zurechtzukommen.   Gewichteter Fehlerwert: Weiß=0.82/Schwarz=0.14 (sehr präzise) .  Fehler:       	Weiß=4     	---        Ungenau:       	Weiß=2     	Schwarz=1     OK:         	Weiß=4     	Schwarz=8     Bester:       	---       	Schwarz=2} 0-1